bitfinex/quotes_ETHUSD_20240715
["timestamp","ask_amount","ask_price","bid_price","bid_amount"]
[1721033909805,0.02,3357.5,3357.4,10.07655825]
[1721033910100,0.02,3357.5,3357.4,9.0414506]
[1721033910305,0.02,3357.5,3357.4,7.39590022]
[1721033910607,0.02,3357.5,3357.4,9.0013288]
[1721033910758,0.02,3357.5,3357.4,7.96622142]
[1721033910972,0.02,3357.5,3357.4,9.0013399]
[1721033911228,0.02,3357.5,3357.4,6.3206999]
[1721033911378,0.02,3357.5,3357.4,5.7706999]
[1721033911712,0.02,3357.5,3357.4,4.73558142]
[1721033911917,0.02,3357.5,3357.4,5.53959895]
[1721033912383,0.02,3357.5,3357.4,4.73558142]
[1721033912571,0.02,3357.5,3357.4,1.73558142]
[1721033915113,0.02,3357.5,3357.4,16.41704277]
[1721033915331,0.0042466,3358.2,3358.1,4.38008]
[1721033915527,0.0042466,3358.2,3358.1,7.93008]
[1721033915675,0.0042466,3358.2,3358.1,9.32696886]
[1721033916921,0.0042466,3358.2,3358.1,6.09688886]
[1721033917225,0.0042466,3358.2,3358.1,4.73509275]
[1721033917876,0.0042466,3358.2,3358.1,1.73509275]
[1721033921028,0.0042466,3358.2,3358.1,4.41517275]
[1721033921226,0.0042466,3358.2,3358.1,7.96517275]
[1721033921439,0.0042466,3358.2,3358.1,9.32970602]
[1721033921926,0.0042466,3358.2,3358.1,4.73509275]
[1721033922152,0.0042466,3358.2,3358.1,1.73509275]
[1721033922992,2.4202466,3358.2,3358.1,0.03509275]
[1721033923426,2.4202466,3358.2,3358.1,1.7]
[1721033923604,2.4202466,3358.2,3358.1,1.73499138]
[1721033927846,5.67238452,3358.2,3358.1,0.03499138]
[1721033928028,5.67238452,3358.2,3357.4,4.7]
[1721033928029,5.79916976,3358.2,3357.5,3.0]
[1721033928233,2.3518,3357.9,3357.4,1.7]
[1721033931748,5.65377136,3357.9,3357.4,1.7]
[1721033931960,0.92664484,3357.8,3357.4,1.7]
[1721033932114,5.65392414,3357.9,3357.4,1.7]
[1721033932308,3.14811152,3357.8,3357.4,1.7]
[1721033932511,2.68034,3357.8,3357.4,1.7]
[1721033933460,2.68043,3357.7,3357.4,1.7]
[1721033933621,2.4745,3357.6,3357.4,1.7]
[1721033933827,3.41348304,3357.6,3357.4,1.7]
[1721033934049,4.03530718,3357.6,3357.4,1.7]
[1721033934431,3.41348304,3357.6,3357.4,1.7]
[1721033935554,6.71569324,3357.6,3357.4,1.7]
[1721033935743,6.09398304,3357.6,3357.4,1.7]
[1721033938632,5.155,3357.6,3357.4,1.7]
[1721033939221,5.155,3357.6,3357.0,1.7]
[1721033939422,2.68077,3357.3,3357.1,0.03583407]
[1721033939622,2.68077,3357.3,3357.0,1.7]
[1721033940269,2.68077,3357.3,3357.1,0.0330776]
[1721033940549,2.68077,3357.3,3357.0,1.7]
[1721033940955,2.68077,3357.3,3357.1,0.03583407]
[1721033941460,5.77623907,3357.6,3357.0,1.7]
[1721033941635,5.15501,3357.6,3357.5,1.7]
[1721033942044,2.4745,3357.6,3357.5,1.7]
[1721033942938,2.4745,3357.6,3357.5,1.73558104]
[1721033944430,3.30105734,3358.1,3357.5,1.73558104]
[1721033944431,2.4099,3357.9,3357.5,1.73558104]
[1721033944679,3.3010328,3358.1,3357.5,1.73558104]
[1721033944680,2.68011,3358.1,3357.5,1.73558104]
[1721033945125,2.68017,3358.0,3357.5,1.73558104]
[1721033945562,2.68011,3358.1,3357.5,1.90913914]
[1721033945762,0.0042466,3358.2,3357.5,1.90913914]
[1721033946069,2.68014,3358.1,3357.5,1.90913914]
[1721033946250,2.68014,3358.1,3357.5,1.73558104]
[1721033946456,2.68017,3358.0,3357.5,1.73558104]
[1721033946747,2.68035,3357.8,3357.5,1.73558104]
[1721033946958,2.68041,3357.7,3357.5,1.73558104]
[1721033948048,5.03995,3357.8,3357.5,1.73558104]
[1721033948447,5.03995,3357.8,3357.5,1.7]
[1721033949962,5.03995,3357.8,3357.6,0.03551967]
[1721033950327,5.03995,3357.8,3357.5,1.7]
[1721033950734,5.03995,3357.8,3357.6,0.03551967]
[1721033951141,5.03995,3357.8,3357.5,1.7]
[1721033951353,2.6804,3357.7,3357.5,1.7]
[1721033951559,2.6804,3357.7,3357.6,0.03551967]
[1721033951967,2.6804,3357.7,3357.5,1.7]
[1721033952142,2.3596,3357.8,3357.5,1.7]
[1721033952347,5.03995,3357.8,3357.5,1.7]
[1721033952738,5.03995,3357.8,3357.6,0.03551592]
[1721033953043,5.03995,3357.8,3357.5,1.7]
[1721033953240,5.03995,3357.8,3357.6,0.03551592]
[1721033953735,5.03995,3357.8,3357.5,1.7]
[1721033954234,5.03995,3357.8,3357.6,0.03551592]
[1721033954438,5.03995,3357.8,3357.5,1.7]
[1721033954978,5.03995,3357.8,3357.6,0.03550185]
[1721033955336,5.03995,3357.8,3357.5,1.7]
[1721033955739,5.03995,3357.8,3357.6,0.03550561]
[1721033956353,5.03995,3357.8,3357.5,1.7]
[1721033956555,2.68035,3357.8,3357.5,1.7]
[1721033956755,2.68035,3357.8,3357.6,0.03550561]
[1721033957457,2.4823466,3358.2,3357.6,0.03550561]
[1721033957458,3.10322771,3358.2,3357.6,0.20905617]
[1721033957656,1.03020261,3358.1,3357.6,0.20905617]
[1721033957856,5.78329771,3358.2,3357.6,0.20905617]
[1721033958178,3.71027781,3358.1,3357.6,0.20905617]
[1721033958545,2.4823466,3358.2,3357.6,0.20905617]
[1721033958973,5.1623566,3358.2,3357.6,0.20905617]
[1721033959884,2.6842566,3358.2,3357.6,0.20905617]
[1721033961270,1.03018149,3358.1,3357.6,0.20905617]
[1721033961447,3.30518162,3358.2,3357.6,0.20905617]
[1721033961848,3.71031862,3358.1,3357.6,0.20905617]
[1721033962049,0.62092502,3358.1,3357.6,0.03550561]
[1721033962275,2.68032,3357.8,3357.5,1.7]
[1721033963189,2.68032,3357.8,3357.6,0.03549904]
[1721033964954,2.68032,3357.8,3357.5,1.7]
[1721033965356,2.394,3357.9,3357.5,1.7]
[1721033965661,5.69553442,3357.9,3357.6,0.03550373]
[1721033965854,0.62124442,3358.1,3357.6,0.03550373]
[1721033966054,0.69888747,3358.0,3357.6,0.03550373]
[1721033966301,0.62124442,3358.0,3357.6,0.03550373]
[1721033966456,2.68032,3357.9,3357.6,0.03550373]
[1721033966653,2.68032,3357.9,3357.5,1.7]
[1721033966654,3.37925921,3357.8,3357.5,1.7]
[1721033966857,3.30161442,3357.8,3357.5,1.7]
[1721033967058,3.30161442,3357.8,3357.6,0.03549245]
[1721033967294,3.30161442,3357.8,3357.5,1.7]
[1721033967494,0.07765003,3357.7,3357.5,1.7]
[1721033967797,3.30161442,3357.8,3357.6,0.03549245]
[1721033968001,0.07764976,3357.7,3357.6,0.03549245]
[1721033968169,0.07764976,3357.7,3357.5,1.7]
[1721033968372,0.62124442,3357.7,3357.5,1.7]
[1721033968554,0.69889463,3357.7,3357.6,0.03549245]
[1721033968984,3.61218663,3357.9,3357.5,1.7]
[1721033968985,0.62124442,3357.8,3357.5,1.7]
[1721033969168,0.93186663,3358.0,3357.5,1.7]
[1721033969169,0.62124442,3358.0,3357.5,1.7]
[1721033969373,0.62124442,3357.9,3357.6,0.03549996]
[1721033969568,0.62124442,3357.8,3357.6,0.03549996]
[1721033969998,0.07764077,3357.9,3357.6,0.03549996]
[1721033969999,0.62124442,3357.9,3357.6,0.03549996]
[1721033970229,2.6843166,3358.2,3357.6,0.03549996]
[1721033970404,0.62223694,3357.8,3357.6,0.03549996]
[1721033970704,0.62223694,3357.9,3357.6,0.03549996]
[1721033972390,0.69987879,3357.8,3357.6,0.03549996]
[1721033972564,0.62223694,3357.8,3357.6,0.03549996]
[1721033978396,0.69987902,3357.8,3357.6,0.03549996]
[1721033978596,0.62223694,3357.8,3357.6,0.03549996]
[1721033979316,0.62223694,3358.0,3357.9,1.7]
[1721033979612,0.62648354,3358.2,3357.9,1.7]
[1721033979825,0.62648354,3358.2,3357.9,1.73528678]
[1721033979988,0.62676491,3358.2,3357.9,1.73528678]
[1721033980773,3.84824751,3358.1,3357.9,1.73528678]
[1721033981095,0.077639,3358.0,3357.9,1.73528678]
[1721033981270,2.68011,3358.1,3357.9,1.73528678]
[1721033981470,0.62676491,3358.2,3357.9,1.73528678]
[1721033981471,0.0042466,3358.2,3357.9,1.73528678]
[1721033981786,2.68008,3358.1,3357.9,1.73528678]
[1721033983313,3.99465455,3358.1,3357.9,0.03528678]
[1721033983512,3.84803844,3358.0,3357.5,1.7]
[1721033983804,2.68032,3357.8,3357.5,1.7]
[1721033984368,0.69205624,3358.1,3358.0,1.7]
[1721033984369,0.62230904,3358.1,3358.0,1.7]
[1721033984601,0.0042466,3358.2,3358.0,1.7]
[1721033984602,0.62655564,3358.2,3358.0,1.7]
[1721033984816,0.0042466,3358.2,3358.0,1.73520947]
[1721033985388,0.70418838,3358.2,3358.0,1.73520947]
[1721033985599,0.0042466,3358.2,3358.0,1.73520947]
[1721033985921,0.62655564,3358.2,3358.0,1.73520947]
[1721033986479,0.0042466,3358.2,3358.0,1.73520947]
[1721033986986,0.62655564,3358.2,3358.0,1.73520947]
[1721033987418,0.0042466,3358.2,3358.0,1.73520947]
[1721033988584,0.0042466,3358.2,3358.0,1.91468616]
[1721033990221,0.0042466,3358.2,3358.1,2.2683]
[1721033990594,0.0042466,3358.2,3358.1,5.30338803]
[1721033992317,0.0042466,3358.2,3358.1,3.03508803]
[1721033992880,0.0042466,3358.2,3358.1,0.03508803]
[1721033993215,0.0042466,3358.2,3358.1,0.75948547]
[1721033993527,0.0042466,3358.2,3358.1,3.7945735]
[1721033994938,0.0042466,3358.2,3358.1,3.03508803]
[1721033995144,0.0042466,3358.2,3358.1,0.03508803]
[1721033995299,0.0042466,3358.2,3358.0,1.87947669]
[1721033995503,0.0042466,3358.2,3358.1,0.03508803]
[1721033995834,0.0042466,3358.2,3358.0,1.87947669]
[1721033996140,0.0042466,3358.2,3358.1,0.2230357]
[1721033998634,0.0042466,3358.2,3358.1,2.5816357]
[1721033998821,0.0042466,3358.2,3358.1,5.5816357]
[1721033999135,0.0042466,3358.2,3358.1,3.03508803]
[1721033999338,0.0042466,3358.2,3358.1,0.03508803]
[1721033999512,0.0042466,3358.2,3358.0,1.7]
[1721033999718,0.0042466,3358.2,3358.1,0.0350111]
[1721033999914,0.0042466,3358.2,3358.0,1.7]
[1721034000111,0.0042466,3358.2,3358.1,0.0350111]
[1721034000937,7.21828126,3358.2,3358.1,0.0350111]
[1721034001146,10.63778342,3358.2,3358.1,0.0350111]
[1721034001447,6.25018,3358.2,3358.1,0.0350111]
[1721034001616,6.8716804,3358.2,3358.1,0.0350111]
[1721034001817,6.2501794,3358.2,3358.1,0.0350111]
[1721034002037,2.95528678,3358.2,3358.1,0.0350111]
[1721034002249,1.17172354,3358.2,3358.1,1.7350111]
[1721034002448,0.70338678,3358.2,3358.1,1.7350111]
[1721034002937,1.17176166,3358.2,3358.1,1.7350111]
[1721034003558,0.0042466,3358.2,3358.1,1.7350111]
[1721034003857,0.0042466,3358.2,3358.1,2.24814763]
[1721034006316,0.0042466,3358.2,3358.1,1.7350111]
[1721034007321,2.3445466,3358.2,3358.1,1.7350111]
[1721034007955,5.0245466,3358.2,3358.1,1.7350111]
[1721034008131,5.0245466,3358.2,3358.1,0.0350111]
[1721034008132,5.49284482,3358.2,3358.1,0.0350111]
[1721034008330,5.57048654,3358.2,3358.1,0.0350111]
[1721034008744,9.961256,3358.2,3358.1,0.0350111]
[1721034008960,11.30235292,3358.2,3358.1,0.0350111]
[1721034009272,10.7762683,3358.2,3358.1,0.0350111]
[1721034010470,12.01966159,3358.2,3358.1,0.0350111]
[1721034010864,11.3021896,3358.2,3358.1,0.0350111]
[1721034011168,9.18286819,3358.2,3358.1,0.0350111]
[1721034011483,9.10522647,3358.2,3358.1,0.0350111]
[1721034011647,9.18287179,3358.2,3358.1,0.0350111]
[1721034011977,2.68018,3358.0,3357.9,1.7]
[1721034012134,0.6992406,3358.0,3357.9,1.7]
[1721034012340,0.62159528,3358.0,3357.9,1.7]
[1721034012659,0.6992406,3358.0,3357.9,1.7]
[1721034012989,1.16695434,3358.0,3357.9,1.7]
[1721034013272,4.95184393,3358.0,3357.9,1.7]
[1721034013565,4.33024865,3358.0,3357.9,1.7]
[1721034014346,5.2626303,3358.0,3357.9,1.7]
[1721034014548,4.33024865,3358.0,3357.9,1.7]
[1721034014738,4.25260333,3358.0,3357.9,1.7]
[1721034014933,4.33025129,3358.0,3357.9,1.7]
[1721034015135,4.25260333,3358.0,3357.9,1.7]
[1721034015342,4.330252,3358.0,3357.9,1.7]
[1721034016062,0.54536241,3358.0,3357.9,1.7]
[1721034016263,0.69943113,3358.0,3357.9,1.7]
[1721034017987,0.62178246,3358.0,3357.9,1.7]
[1721034018203,0.69942773,3358.0,3357.9,1.7]
[1721034018349,0.07764527,3358.0,3357.9,1.7]
[1721034018660,1.16749191,3358.0,3357.9,1.7]
[1721034019055,4.33055666,3358.0,3357.9,1.7]
[1721034020193,4.33055666,3358.0,3357.4,1.7]
[1721034020194,2.68039,3357.8,3357.4,1.7]
[1721034020350,2.68049,3357.6,3357.4,1.7]
[1721034020551,2.68049,3357.6,3357.5,0.04085548]
[1721034020787,2.7581439,3357.6,3357.5,0.04085548]
[1721034020960,3.84779245,3357.6,3357.5,0.04085548]
[1721034021270,4.12622649,3357.6,3357.5,0.04085548]
[1721034021486,7.24197786,3357.6,3357.5,0.04085548]
[1721034021749,2.68072,3357.3,3357.0,1.7]
[1721034022076,0.69941715,3357.2,3357.1,0.0374778]
[1721034022280,0.69941715,3357.2,3357.0,1.7]
[1721034022281,0.77700124,3357.2,3357.0,1.7]
[1721034022481,0.69933659,3357.2,3357.1,0.0374778]
[1721034022796,3.45780159,3357.2,3357.0,1.7]
[1721034022953,3.38013659,3357.2,3357.1,0.0374778]
[1721034023152,3.45780198,3357.2,3357.1,0.0374778]
[1721034023356,3.38013659,3357.2,3357.0,1.7]
[1721034023575,3.38013659,3357.2,3357.1,0.0374778]
[1721034023950,3.38013659,3357.2,3357.0,1.7]
[1721034024155,3.38013659,3357.2,3357.1,0.0374778]
[1721034024463,3.38013659,3357.2,3357.0,1.7]
[1721034024664,2.6808,3357.2,3357.1,0.0374778]
[1721034024995,2.6808,3357.2,3357.0,1.7]
[1721034025151,2.6808,3357.2,3357.1,0.0375198]
[1721034025548,2.6808,3357.2,3357.0,1.7]
[1721034025792,3.37223181,3357.2,3357.1,0.0375198]
[1721034026156,3.37223181,3357.2,3357.0,1.7]
[1721034026490,2.68088,3357.1,3357.0,1.7]
[1721034026899,2.68088,3357.1,3357.0,1.73445172]
[1721034027757,8.40638159,3357.1,3357.0,0.03445172]
[1721034027964,2.6811,3356.9,3356.6,1.7]
[1721034028159,2.68114,3356.8,3356.6,1.7]
[1721034029665,2.6812,3356.7,3356.6,1.7]
[1721034029861,2.68109,3356.9,3356.6,1.73473487]
[1721034030097,3.22267768,3356.9,3356.6,1.7]
[1721034030612,2.6812,3356.7,3356.6,1.7]
[1721034031605,2.68144,3356.4,3356.1,1.7]
[1721034032134,2.68144,3356.4,3356.0,1.7]
[1721034032318,2.68144,3356.4,3356.2,0.04485451]
[1721034032635,2.68144,3356.4,3356.0,1.7]
[1721034032845,2.68144,3356.4,3356.3,0.04477012]
[1721034032995,2.68144,3356.4,3356.0,1.7]
[1721034033197,2.68144,3356.4,3356.3,0.04477012]
[1721034033437,3.454856,3356.4,3356.0,1.7]
[1721034033607,3.454856,3356.4,3356.3,0.04477012]
[1721034033799,3.454856,3356.4,3356.0,1.7]
[1721034034136,2.68154,3356.3,3356.0,1.7]
[1721034034340,2.68188,3355.9,3355.7,2.99]
[1721034034509,2.68188,3355.9,3355.5,1.7]
[1721034035019,2.68178,3356.0,3355.5,1.7]
[1721034035228,2.68154,3356.3,3355.5,1.7]
[1721034035229,2.68167,3356.2,3355.6,2.4508]
[1721034035422,2.68169,3356.1,3355.6,2.4508]
[1721034036734,2.68169,3356.1,3355.5,1.7]
[1721034036735,2.68185,3355.9,3355.5,1.7]
[1721034038247,2.68179,3356.0,3355.5,1.7]
[1721034038397,2.68169,3356.1,3355.5,2.11788]
[1721034038602,2.68176,3356.0,3355.5,2.11788]
[1721034038826,2.68185,3355.9,3355.5,1.7]
[1721034039403,2.3713,3356.5,3355.9,1.7]
[1721034039710,2.68139,3356.5,3356.0,0.04502331]
[1721034039919,7.2977,3356.6,3356.3,1.7]
[1721034040122,7.2977,3356.6,3356.4,0.04478093]
[1721034040841,2.68129,3356.6,3356.4,0.04478093]
[1721034041002,0.53625,3356.5,3356.4,0.04478093]
[1721034041442,5.55861,3356.5,3356.4,0.04478093]
[1721034041638,5.55861,3356.5,3355.9,1.7]
[1721034041639,2.68144,3356.4,3355.9,1.7]
[1721034042002,2.68165,3356.2,3356.0,0.04510845]
[1721034043012,5.36336,3356.1,3356.0,0.04510845]
[1721034043323,5.36336,3356.1,3354.7,2.68277]
[1721034043324,2.68208,3355.6,3355.3,1.7]
[1721034043650,2.68208,3355.6,3355.4,0.04561499]
[1721034044008,2.68208,3355.6,3355.3,1.7]
[1721034044239,2.68208,3355.6,3355.5,0.04553055]
[1721034044441,2.68218,3355.5,3355.3,1.7]
[1721034045109,2.68201,3355.7,3355.3,1.7]
[1721034045310,2.68208,3355.6,3355.3,1.7]
[1721034045628,2.68217,3355.5,3355.3,1.7]
[1721034045829,2.68208,3355.6,3355.3,1.7]
[1721034046447,2.68216,3355.5,3355.3,1.7]
[1721034047627,2.68216,3355.5,3354.0,0.46716626]
[1721034047628,2.68248,3355.1,3354.0,0.46716626]
[1721034047830,2.68274,3354.8,3354.2,1.7]
[1721034048144,2.68295,3354.6,3354.3,1.7]
[1721034048732,2.68295,3354.6,3353.9,2.2867]
[1721034048733,2.68295,3354.6,3354.0,1.7]
[1721034049255,2.68295,3354.6,3354.1,1.7]
[1721034049432,2.68295,3354.6,3354.2,1.7]
[1721034049611,2.68295,3354.6,3353.9,2.2867]
[1721034049810,2.68297,3354.5,3354.0,1.7]
[1721034050009,2.68297,3354.5,3353.9,1.7]
[1721034050213,3.451962,3354.5,3353.9,1.7]
[1721034050524,2.68319,3354.3,3353.9,1.7]
[1721034050922,2.68319,3354.3,3353.7,1.7]
[1721034051121,2.68326,3354.2,3353.7,1.7]
[1721034052324,2.6834,3354.0,3353.6,3.0]
[1721034052609,2.6834,3354.0,3353.6,4.7]
[1721034052815,2.68325,3354.2,3353.6,4.7]
[1721034053013,2.68328,3354.1,3353.6,4.7]
[1721034053323,2.68314,3354.3,3354.0,1.7]
[1721034054823,2.68321,3354.2,3354.0,1.7]
[1721034055218,2.68314,3354.3,3353.5,2.99]
[1721034055219,2.68337,3354.0,3353.5,2.99]
[1721034055429,2.68337,3354.0,3353.5,4.69]
[1721034055828,2.68345,3353.9,3353.5,4.64]
[1721034056018,5.10095,3353.9,3353.5,4.64]
[1721034056214,5.879375,3353.9,3353.5,2.94]
[1721034056460,2.68352,3353.8,3353.5,2.94]
[1721034057256,2.68368,3353.6,3353.5,2.94]
[1721034057948,2.68368,3353.6,3353.5,2.98505032]
[1721034058329,5.36736,3353.6,3353.5,2.98505032]
[1721034058533,6.4920445,3353.6,3353.5,2.98505032]
[1721034060247,6.4920445,3353.6,3353.5,0.04505032]
[1721034060468,2.68401,3353.2,3353.0,1.7]
[1721034060647,2.68382,3353.5,3353.0,1.7]
[1721034060949,2.68382,3353.5,3353.1,0.04538849]
[1721034061747,3.195925,3353.9,3353.1,0.10503511]
[1721034061944,12.19,3354.8,3354.2,1.7]
[1721034061945,7.2977,3354.8,3354.2,1.7]
[1721034062216,2.4454,3355.0,3354.3,0.04992099]
[1721034062217,5.12797,3355.0,3354.3,0.04992099]
[1721034062640,5.12797,3355.0,3354.0,1.7]
[1721034062826,5.36572,3354.7,3354.0,1.7]
[1721034063161,3.463972,3354.7,3354.1,0.05011111]
[1721034063971,2.68306,3354.4,3354.1,0.05011111]
[1721034064267,2.68317,3354.3,3354.1,0.05011111]
[1721034064624,2.68317,3354.3,3353.7,1.7]
[1721034065132,2.68317,3354.3,3353.8,0.0450813]
[1721034065322,2.6833,3354.1,3353.8,0.0450813]
[1721034065654,2.68276,3354.8,3353.3,3.0]
[1721034065655,2.68304,3354.4,3353.9,1.7]
[1721034065857,2.68304,3354.4,3353.9,1.74500305]
[1721034066065,2.68289,3354.6,3353.9,1.74500305]
[1721034066354,0.998059,3354.5,3353.9,1.74500305]
[1721034066860,2.68304,3354.4,3353.9,1.74500305]
[1721034067085,2.68326,3354.2,3353.9,1.74500305]
[1721034067365,2.68326,3354.2,3353.9,1.7]
[1721034067517,2.68326,3354.2,3354.0,0.04490722]
[1721034067720,0.53663,3354.1,3354.0,0.04490722]
[1721034067919,3.21991,3354.1,3354.0,0.04490722]
[1721034068163,3.21991,3354.1,3353.5,1.7]
[1721034068164,2.68348,3353.9,3353.5,1.7]
[1721034068463,2.68354,3353.8,3353.6,0.04524529]
[1721034069191,2.68348,3353.9,3353.5,1.7]
[1721034069369,0.53663,3354.1,3353.5,1.7]
[1721034069370,2.68328,3354.1,3353.5,1.7]
[1721034070073,3.444933,3354.1,3353.5,1.7]
[1721034070281,2.68353,3353.8,3353.5,1.7]
[1721034071301,2.68342,3354.0,3353.5,1.7]
[1721034071456,0.761653,3354.1,3353.5,1.7]
[1721034071661,2.68321,3354.2,3353.5,1.7]
[1721034071962,2.68329,3354.1,3353.5,1.7]
[1721034072390,2.68349,3353.9,3353.5,1.7]
[1721034072565,2.6833,3354.1,3353.5,1.7]
[1721034072762,0.26833,3354.1,3353.5,1.7]
[1721034072962,2.68328,3354.1,3353.5,1.7]
[1721034073178,2.6835,3353.9,3353.5,1.7]
[1721034073986,2.68352,3353.8,3353.5,1.7]
[1721034074656,2.6836,3353.7,3353.0,2.94]
[1721034074850,2.68379,3353.5,3353.0,4.64]
[1721034075173,2.68379,3353.5,3353.0,1.7]
[1721034076095,2.68379,3353.5,3352.5,5.01155]
[1721034076096,2.68395,3353.3,3352.8,1.7]
[1721034076267,2.2502,3353.9,3352.8,1.7]
[1721034076268,2.68401,3353.2,3352.8,1.7]
[1721034076466,2.68379,3353.5,3352.8,1.7]
[1721034076467,2.68379,3353.5,3352.8,1.75584811]
[1721034076992,2.6837,3353.6,3352.8,1.75584811]
[1721034077172,2.6837,3353.6,3352.8,2.43257392]
[1721034077570,2.95855,3353.8,3352.8,2.43257392]
[1721034077775,3.71535854,3353.7,3352.8,2.43257392]
[1721034077994,2.6837,3353.6,3352.8,2.43257392]
[1721034078693,2.6837,3353.6,3353.0,1.7]
[1721034078877,3.71550277,3353.5,3353.0,1.7]
[1721034079084,2.68377,3353.5,3353.0,1.7]
[1721034080459,0.27502,3353.8,3353.0,1.7]
[1721034080684,3.71534005,3353.7,3353.0,1.7]
[1721034080885,2.68377,3353.5,3353.0,1.7]
[1721034081193,0.5,3354.0,3353.7,1.7]
[1721034081899,3.18338,3354.0,3353.7,1.7]
[1721034082402,3.18338,3354.0,3353.3,1.7]
[1721034082997,2.68361,3353.7,3353.3,1.7]
[1721034084384,2.68368,3353.6,3353.3,1.7]
[1721034084786,2.68365,3353.7,3353.3,1.7]
[1721034086805,2.68369,3353.6,3353.3,1.7]
[1721034087000,2.68369,3353.6,3352.9,1.7]
[1721034087001,2.68371,3353.6,3352.9,1.7]
[1721034087518,2.68392,3353.4,3352.9,1.75585231]
[1721034091480,2.68349,3353.9,3353.3,1.7]
[1721034091685,1.11749977,3354.0,3353.3,1.7]
[1721034091686,0.5,3354.0,3353.3,3.9895]
[1721034092420,0.5,3354.0,3353.7,1.7]
[1721034092592,0.5,3354.0,3353.9,2.2895]
[1721034092941,0.5,3354.0,3353.9,2.8395]
[1721034093223,0.5,3354.0,3353.9,4.5395]
[1721034093715,0.5,3354.0,3353.9,1.7]
[1721034095224,0.5,3354.0,3353.9,2.438361]
[1721034095919,0.5,3354.0,3353.9,5.121801]
[1721034096126,0.5,3354.0,3353.9,5.671801]
[1721034097529,0.5,3354.0,3353.9,13.802141]
[1721034098186,0.5,3354.0,3353.9,9.418701]
[1721034098382,0.5,3354.0,3353.9,11.118701]
[1721034098886,0.5,3354.0,3353.9,13.802141]
[1721034100088,0.1875,3354.0,3353.9,17.52176321]
[1721034100289,0.1875,3354.0,3353.9,20.20520321]
[1721034100788,0.1875,3354.0,3353.9,56.14153611]
[1721034100997,0.1875,3354.0,3353.9,59.27437061]
[1721034101200,0.61982614,3356.3,3355.8,1.7]
[1721034101426,1.23965228,3356.6,3356.2,1.7]
[1721034101427,0.61982614,3356.6,3356.2,1.7]
[1721034101724,0.61982614,3356.6,3355.1,5.08376]
[1721034101725,2.68128,3356.6,3355.1,5.08376]
[1721034102019,2.68151,3356.4,3355.8,1.7]
[1721034102188,2.68153,3356.3,3355.5,4.7]
[1721034102384,2.68153,3356.3,3355.2,5.68236]
[1721034102623,2.68153,3356.3,3355.5,1.7]
[1721034102985,2.68182,3356.0,3355.5,1.7]
[1721034103190,0.536355,3355.9,3355.5,1.7]
[1721034103900,2.3406,3355.8,3355.5,1.7]
[1721034104322,0.536355,3355.9,3355.5,1.7]
[1721034104523,2.68153,3356.3,3355.5,1.7]
[1721034104941,3.183568,3356.5,3355.6,0.55]
[1721034105091,0.8308968,3356.4,3355.9,1.7]
[1721034106854,3.5123668,3356.4,3355.9,1.7]
[1721034107015,3.5123668,3356.4,3354.7,13.0928]
[1721034107016,2.68191,3355.9,3354.9,2.4789]
[1721034107216,2.68191,3355.9,3354.7,13.09279]
[1721034107217,2.68191,3355.9,3355.2,1.7]
[1721034107424,2.68193,3355.8,3355.2,1.7]
[1721034107675,0.268193,3355.7,3355.2,1.7]
[1721034108218,2.3452,3356.3,3355.2,1.7]
[1721034108219,5.02673,3356.3,3355.2,1.7]
[1721034108465,2.68161,3356.2,3355.6,1.7]
[1721034108759,2.3452,3356.3,3355.6,1.7]
[1721034109423,5.0268,3356.3,3355.6,1.7]
[1721034109622,2.68184,3355.9,3355.6,1.7]
[1721034110318,2.68184,3355.9,3355.0,5.68255]
[1721034110319,2.68193,3355.8,3355.1,1.7]
[1721034110772,0.85390668,3356.2,3355.1,1.7]
[1721034110773,2.68181,3356.0,3355.1,1.7]
[1721034111056,2.68184,3355.9,3355.5,1.7]
[1721034111755,2.68194,3355.8,3355.5,1.7]
[1721034111969,3.218388,3355.7,3355.5,1.7]
[1721034112265,3.218388,3355.7,3354.9,3.0]
[1721034112266,3.218388,3355.7,3355.1,1.7]
[1721034113243,0.536378,3355.7,3355.1,1.7]
[1721034113754,3.218408,3355.7,3355.1,1.7]
[1721034115131,3.218408,3355.7,3354.8,4.7]
[1721034115132,2.937378,3355.7,3354.8,4.7]
[1721034115435,2.68233,3355.3,3354.9,1.7]
[1721034116154,2.68233,3355.3,3354.8,4.7]
[1721034116376,2.68233,3355.3,3354.9,1.7]
[1721034116543,2.68272,3354.8,3354.5,1.7]
[1721034117430,5.619864,3355.2,3354.5,1.7]
[1721034117761,7.2977,3355.5,3355.0,1.7]
[1721034117969,2.68199,3355.8,3355.4,1.7]
[1721034118462,2.68176,3356.0,3355.4,1.7]
[1721034118463,2.682,3355.7,3355.4,1.7]
[1721034118956,2.68189,3355.9,3355.4,1.7]
[1721034119329,2.68192,3355.8,3355.4,1.7]
[1721034119530,1.26613,3355.8,3355.4,1.7]
[1721034120334,3.94805,3355.8,3355.4,1.7]
[1721034121227,2.68192,3355.8,3355.4,1.7]
[1721034121864,2.68184,3355.9,3355.4,1.7]
[1721034122078,2.6817,3356.1,3355.4,1.7]
[1721034122568,0.85390668,3356.2,3355.8,1.7]
[1721034122928,2.68161,3356.2,3355.8,1.7]
[1721034123131,2.68177,3356.0,3355.5,1.7]
[1721034123332,0.8308968,3356.4,3355.4,1.7]
[1721034123333,2.68184,3355.9,3355.4,1.7]
[1721034128670,5.04224,3355.9,3355.4,1.7]
[1721034128865,2.68198,3355.8,3355.4,1.7]
[1721034129053,0.772422,3355.7,3355.4,1.7]